bitfinex/quotes_SOLUSD_20240716
["timestamp","ask_amount","ask_price","bid_price","bid_amount"]
[1721097306018,15.55,157.34,157.29,23.17891758]
[1721097306182,15.55,157.34,157.29,16.82131758]
[1721097306518,15.55,157.33,157.29,1.27131758]
[1721097306819,15.55,157.33,157.28,22.014]
[1721097306983,15.55,157.34,157.29,16.82127612]
[1721097307184,15.55,157.34,157.29,23.17887612]
[1721097307374,15.55,157.35,157.3,51.3568]
[1721097307792,15.55,157.35,157.29,31.444]
[1721097308125,6.60415556,157.38,157.33,15.55]
[1721097308298,15.55,157.4,157.35,15.55]
[1721097309000,15.55,157.4,157.34,66.9056]
[1721097309202,15.55,157.4,157.34,45.0]
[1721097309399,15.55,157.38,157.32,31.4408]
[1721097309619,10.0,157.43,157.33,45.0]
[1721097310019,12.95413931,157.44,157.36,6.3547]
[1721097310203,12.95413931,157.44,157.37,1.2707094]
[1721097310408,6.3521,157.43,157.37,1.2707094]
[1721097310596,10.0,157.43,157.35,15.8879]
[1721097310803,6.3524,157.42,157.35,15.8879]
[1721097311031,6.3524,157.42,157.35,22.2431]
[1721097311202,6.3524,157.42,157.35,15.8879]
[1721097311402,6.353,157.41,157.35,15.8879]
[1721097312536,6.3533,157.4,157.34,15.1876]
[1721097312837,10.0,157.41,157.34,15.1876]
[1721097312838,6.354,157.38,157.34,15.1876]
[1721097313519,6.3547,157.37,157.3,16.5916]
[1721097313728,6.354,157.38,157.3,16.5916]
[1721097314833,16.354,157.38,157.3,22.9488]
[1721097315027,6.3545,157.37,157.3,22.9488]
[1721097318855,6.60409041,157.37,157.31,12.848]
[1721097319443,12.95849041,157.37,157.31,6.4912]
[1721097321044,6.3549,157.36,157.31,6.4912]
[1721097321250,6.3553,157.35,157.31,6.4912]
[1721097322225,6.3553,157.35,157.3,16.5916]
[1721097322757,6.3557,157.34,157.3,16.5916]
[1721097323332,6.3562,157.33,157.3,16.5916]
[1721097324059,10.0,157.34,157.3,16.5916]
[1721097324060,16.3557,157.34,157.3,16.5916]
[1721097324551,10.0,157.34,157.3,16.5916]
[1721097325453,16.3556,157.34,157.3,16.5916]
[1721097325658,10.0,157.34,157.3,16.5916]
[1721097325825,6.60409041,157.37,157.3,16.5916]
[1721097326032,6.60409041,157.37,157.31,6.3567]
[1721097326354,16.3532,157.4,157.33,6.356]
[1721097326865,6.3536,157.39,157.33,6.356]
[1721097327154,6.60323992,157.4,157.34,6.3555]
[1721097327353,10.0,157.42,157.34,6.3555]
[1721097327541,30.36810251,157.43,157.37,6.3544]
[1721097327743,36.72020251,157.43,157.36,6.3548]
[1721097328860,6.3525,157.42,157.35,76.3257]
[1721097329032,6.3525,157.42,157.35,31.3257]
[1721097329849,10.0,157.41,157.35,15.4386]
[1721097330353,6.3528,157.41,157.35,15.4386]
[1721097330561,40.36810251,157.43,157.36,6.3547]
[1721097330562,46.72040251,157.43,157.36,6.3547]
[1721097330757,6.3524,157.42,157.35,21.7938]
[1721097331243,10.0,157.41,157.35,15.4386]
[1721097331438,40.36810251,157.43,157.35,15.4386]
[1721097332540,6.3524,157.42,157.35,21.7935]
[1721097334102,30.36810251,157.43,157.38,6.3539]
[1721097334232,30.36810251,157.43,157.37,22.2404]
[1721097335368,6.3516,157.44,157.37,22.2404]
[1721097336174,34.50042305,157.45,157.37,22.2404]
[1721097336175,40.85162305,157.45,157.37,22.2404]
[1721097336330,40.85162305,157.45,157.38,6.3536]
[1721097337671,40.85162305,157.45,157.4,16.0379]
[1721097337867,34.25058352,157.45,157.4,16.0379]
[1721097338565,6.3516,157.44,157.4,16.0379]
[1721097340257,15.53,157.42,157.4,16.0379]
[1721097341651,6.3516,157.44,157.4,16.0379]
[1721097341854,15.53,157.42,157.4,16.0379]
[1721097343271,15.53,157.41,157.35,6.3552]
[1721097343479,15.53,157.39,157.36,15.8307]
[1721097344182,15.53,157.37,157.36,15.8307]
[1721097344652,15.53,157.38,157.36,15.8307]
[1721097344972,15.53,157.39,157.36,15.8307]
[1721097345580,10.0,157.42,157.36,15.8307]
[1721097345746,15.53,157.39,157.36,15.8307]
[1721097345944,15.53,157.38,157.36,15.8307]
[1721097346145,6.3536,157.39,157.36,15.8307]
[1721097346378,15.53,157.38,157.36,15.8307]
[1721097346666,16.3524,157.42,157.36,15.8307]
[1721097346865,15.53,157.4,157.36,15.8307]
[1721097348540,17.06646445,157.43,157.36,22.1855]
[1721097348746,15.53,157.41,157.37,6.3543]
[1721097348972,15.53,157.42,157.37,21.8843]
[1721097349379,17.06646445,157.43,157.37,37.7702]
[1721097349551,15.53,157.42,157.37,37.7702]
[1721097349979,32.59646445,157.43,157.37,37.7702]
[1721097350355,32.59646445,157.43,157.38,15.53]
[1721097350678,15.53,157.42,157.37,37.7702]
[1721097351372,15.53,157.42,157.37,22.2402]
[1721097351675,15.53,157.42,157.37,37.7702]
[1721097352475,32.59646445,157.43,157.38,15.53]
[1721097352677,17.06646445,157.43,157.42,6.3524]
[1721097352883,25.53,157.48,157.43,6.352]
[1721097353187,6.3499,157.49,157.42,15.53]
[1721097355388,6.3499,157.49,157.42,6.3524]
[1721097356955,6.3499,157.49,157.42,21.8824]
[1721097357158,15.53,157.46,157.39,38.4369]
[1721097357457,15.53,157.46,157.41,21.8828]
[1721097357880,15.53,157.46,157.4,65.0]
[1721097357881,25.53,157.46,157.39,44.7901]
[1721097358082,15.53,157.44,157.39,38.4369]
[1721097358385,15.53,157.44,157.39,53.9669]
[1721097358582,10.0,157.46,157.4,21.8832]
[1721097358786,15.53,157.45,157.4,21.8832]
[1721097359286,10.0,157.46,157.4,21.8832]
[1721097359581,15.53,157.45,157.4,21.8832]
[1721097360163,15.53,157.45,157.4,15.53]
[1721097360372,15.53,157.44,157.39,53.9669]
[1721097360882,15.53,157.44,157.39,60.3205]
[1721097361081,15.53,157.45,157.4,21.8832]
[1721097361591,15.53,157.44,157.4,6.3532]
[1721097361775,15.53,157.45,157.4,21.8832]
[1721097362108,15.53,157.45,157.41,6.3528]
[1721097362868,15.53,157.45,157.4,15.53]
[1721097363071,6.3513,157.45,157.39,38.4369]
[1721097363290,15.53,157.42,157.39,22.5537]
[1721097363489,10.0,157.41,157.35,21.83]
[1721097363700,15.53,157.39,157.35,21.83]
[1721097364193,15.53,157.38,157.35,21.83]
[1721097364381,15.53,157.39,157.35,21.83]
[1721097364799,16.3532,157.41,157.35,21.83]
[1721097365104,15.53,157.39,157.35,21.83]
[1721097365394,15.53,157.37,157.35,15.6784]
[1721097365605,15.53,157.36,157.35,15.6784]
[1721097365894,6.3536,157.39,157.35,15.6784]
[1721097366100,15.53,157.37,157.35,15.6784]
[1721097366401,15.53,157.36,157.35,15.6784]
[1721097366602,15.53,157.36,157.31,6.1517]
[1721097366900,6.354,157.38,157.31,12.5085]
[1721097367105,15.53,157.36,157.31,28.0385]
[1721097367606,6.354,157.38,157.31,28.0385]
[1721097367816,6.354,157.38,157.32,6.3564]
[1721097367988,15.53,157.36,157.32,6.3564]
[1721097368688,15.53,157.36,157.31,12.5084]
[1721097368905,15.53,157.36,157.31,28.0384]
[1721097369311,15.53,157.32,157.3,15.6345]
[1721097370412,15.53,157.33,157.3,15.6345]
[1721097371483,10.0,157.38,157.3,37.5217]
[1721097371823,15.53,157.36,157.31,21.8866]
[1721097372015,15.53,157.35,157.31,6.3566]
[1721097372318,15.53,157.35,157.3,38.79292084]
[1721097372618,15.53,157.35,157.3,37.5217]
[1721097372918,15.53,157.36,157.31,15.53]
[1721097373487,15.53,157.35,157.3,21.9917]
[1721097373806,15.53,157.35,157.3,31.1645]
[1721097373987,15.53,157.35,157.3,15.6345]
[1721097374189,6.3552,157.36,157.3,15.6345]
[1721097374500,15.53,157.35,157.3,15.6345]
[1721097375185,15.53,157.35,157.3,21.9917]
[1721097376019,6.3553,157.35,157.3,15.6345]
[1721097376224,15.53,157.32,157.3,15.6345]
[1721097378026,15.53,157.33,157.3,15.6345]
[1721097379507,15.53,157.32,157.3,15.6345]
[1721097380121,15.53,157.33,157.3,15.6345]
[1721097382819,21.8862,157.33,157.3,15.6345]
[1721097383021,15.53,157.33,157.3,15.6345]
[1721097384594,6.3553,157.35,157.3,15.6345]
[1721097384794,15.53,157.33,157.3,15.6345]
[1721097385322,6.3553,157.35,157.3,15.6345]
[1721097385525,15.53,157.34,157.3,15.6345]
[1721097386496,6.3553,157.35,157.3,15.6345]
[1721097386800,15.53,157.33,157.3,15.6345]
[1721097387521,15.53,157.32,157.3,15.6345]
[1721097388307,6.3553,157.35,157.3,15.6345]
[1721097388624,15.53,157.34,157.3,15.6345]
[1721097389220,21.8856,157.34,157.3,15.6345]
[1721097389607,15.53,157.34,157.3,15.6345]
[1721097390443,6.3549,157.36,157.3,21.9917]
[1721097390642,6.3549,157.36,157.3,38.79293618]
[1721097390821,15.53,157.35,157.3,38.79293618]
[1721097391343,15.53,157.35,157.3,32.43573618]
[1721097391519,15.53,157.35,157.3,31.1645]
[1721097392120,15.53,157.35,157.3,37.5217]
[1721097392332,15.53,157.36,157.3,31.1645]
[1721097392644,15.53,157.37,157.32,15.53]
[1721097392828,15.53,157.35,157.3,37.884]
[1721097393031,15.53,157.34,157.3,31.5268]
[1721097393336,15.53,157.33,157.3,15.6345]
[1721097395556,6.3553,157.35,157.3,15.6345]
[1721097395852,15.53,157.33,157.3,15.6345]
[1721097396847,15.53,157.34,157.3,15.6345]
[1721097398347,15.53,157.32,157.3,15.6345]
[1721097399256,6.3558,157.34,157.3,15.6345]
[1721097399552,15.53,157.31,157.3,15.6345]
[1721097399849,15.53,157.31,157.27,6.3817]
[1721097400067,15.53,157.29,157.27,6.3817]
[1721097400765,6.3564,157.32,157.27,6.3817]
[1721097400930,15.53,157.29,157.27,6.3817]
[1721097401127,15.53,157.3,157.27,6.3817]
[1721097401327,15.53,157.29,157.27,6.3817]
[1721097401757,15.53,157.3,157.27,6.3817]
[1721097402838,6.3564,157.32,157.27,6.3817]
[1721097403051,15.53,157.3,157.27,6.3817]
[1721097403753,15.53,157.3,157.27,12.7401]
[1721097405066,15.53,157.31,157.27,12.7401]
[1721097406155,6.3556,157.34,157.28,6.358]
[1721097406452,16.3555,157.35,157.28,6.358]
[1721097406655,15.53,157.33,157.28,6.358]
[1721097407033,6.3556,157.34,157.28,6.358]
[1721097407438,15.53,157.32,157.28,6.358]
[1721097408353,6.60436723,157.38,157.29,1.27136541]
[1721097408562,6.60436723,157.38,157.32,22.1204]
[1721097408563,15.53,157.37,157.32,22.1204]
[1721097408861,15.53,157.35,157.32,15.7641]
[1721097410456,6.3544,157.37,157.32,15.7641]
[1721097410648,6.3553,157.35,157.32,15.7641]
[1721097410954,15.53,157.33,157.28,15.7641]
[1721097411263,15.53,157.29,157.28,15.7641]
[1721097413363,15.53,157.29,157.27,6.3817]
[1721097413364,6.3569,157.31,157.24,6.3595]
[1721097413568,15.53,157.28,157.24,6.3595]
[1721097413740,6.3569,157.31,157.24,6.3595]
[1721097413945,15.53,157.28,157.24,6.3595]
[1721097414960,15.53,157.29,157.24,21.8895]
[1721097415861,58.0117,157.35,157.26,6.3588]
[1721097415862,10.0,157.34,157.26,6.3588]
[1721097416058,15.53,157.3,157.26,6.3588]
[1721097416244,15.53,157.3,157.25,6.3592]
[1721097416562,15.53,157.3,157.26,45.0]
[1721097416775,6.3565,157.32,157.26,51.3588]
[1721097417069,15.53,157.3,157.26,51.3588]
[1721097417564,6.3561,157.33,157.27,6.3584]
[1721097417770,15.53,157.31,157.27,6.3584]
[1721097418146,15.53,157.31,157.26,66.8888]
[1721097418549,6.3561,157.33,157.26,66.8888]
[1721097418854,15.53,157.31,157.26,66.8888]
[1721097419963,15.53,157.32,157.27,21.8883]
[1721097420343,15.53,157.32,157.27,15.53]
[1721097420565,15.53,157.32,157.27,21.8884]
[1721097420767,6.60306508,157.35,157.29,16.3245]
[1721097421071,15.53,157.33,157.29,16.3245]
[1721097421966,10.0,157.36,157.29,16.3245]
[1721097422265,15.53,157.33,157.29,16.3245]
[1721097422466,15.53,157.33,157.29,17.59582796]
[1721097422967,6.3557,157.34,157.29,16.3245]
[1721097423159,15.53,157.33,157.29,16.3245]
[1721097423471,15.53,157.34,157.29,22.682]
[1721097423769,15.53,157.34,157.3,7.62840162]
[1721097423967,15.53,157.35,157.3,21.8872]
[1721097424266,6.3545,157.37,157.31,6.3568]
[1721097424456,15.53,157.35,157.31,6.3568]
[1721097424861,15.53,157.35,157.3,21.8871]
[1721097425174,15.53,157.35,157.31,45.0]
[1721097425547,15.53,157.33,157.29,16.3245]
[1721097426164,15.53,157.34,157.29,32.2186]
[1721097426367,6.3551,157.36,157.29,32.2186]
[1721097426368,6.3551,157.36,157.29,38.5761]
[1721097426576,15.53,157.34,157.3,45.0]
[1721097427654,15.53,157.35,157.3,60.53]
[1721097427854,6.3551,157.36,157.3,66.8871]
[1721097428160,15.53,157.35,157.31,6.3568]
[1721097429274,15.53,157.35,157.3,66.8872]
[1721097430963,15.53,157.33,157.29,16.3245]
[1721097431364,10.0,157.38,157.3,15.53]
[1721097431365,6.3551,157.36,157.3,15.53]
[1721097431573,6.3551,157.36,157.29,16.3245]
[1721097431574,21.8851,157.36,157.31,15.53]
[1721097432577,15.53,157.35,157.3,21.8872]
[1721097432775,15.53,157.35,157.3,15.53]
[1721097432973,15.53,157.35,157.29,38.212]
[1721097433177,15.53,157.35,157.3,45.0]
[1721097433352,15.53,157.35,157.3,61.80112698]
[1721097433857,15.53,157.35,157.3,60.53]
[1721097434375,15.53,157.35,157.3,66.8872]
[1721097435574,15.53,157.36,157.31,15.53]
[1721097436381,15.53,157.36,157.3,66.8872]
[1721097436560,15.53,157.35,157.3,66.8872]
[1721097440070,15.53,157.36,157.31,15.53]
[1721097440569,6.3545,157.37,157.31,15.53]
[1721097440767,15.53,157.36,157.31,15.53]
[1721097441271,12.95494277,157.4,157.34,21.5603]
[1721097441454,6.3535,157.4,157.35,32.93506469]
[1721097441659,15.53,157.41,157.36,15.53]
[1721097441878,15.53,157.41,157.36,16.8007566]
[1721097442185,15.53,157.41,157.36,1.2707566]
[1721097442682,10.0,157.39,157.35,16.1342]
[1721097442876,15.53,157.37,157.35,16.1342]
[1721097443278,10.0,157.37,157.3,16.1342]
[1721097443468,21.8855,157.35,157.3,31.6642]
[1721097445192,6.3548,157.37,157.3,31.6642]
[1721097445359,15.53,157.36,157.31,60.53]
[1721097445561,21.8848,157.37,157.31,60.53]
[1721097445779,21.8849,157.36,157.31,60.53]
[1721097446570,21.8849,157.36,157.31,45.0]
[1721097446772,15.53,157.35,157.31,45.0]
[1721097446971,15.53,157.36,157.31,45.0]
[1721097447383,6.3541,157.38,157.32,6.3562]
[1721097447691,15.53,157.36,157.3,31.6642]
[1721097447988,15.53,157.35,157.3,38.0214]
[1721097448173,21.8853,157.35,157.3,31.6642]
[1721097448369,15.53,157.35,157.3,16.1342]
[1721097448559,15.53,157.35,157.3,31.6642]
[1721097450584,15.53,157.35,157.3,38.0213]
[1721097451491,15.53,157.35,157.3,39.2925298]
[1721097452069,6.6008819,157.39,157.31,6.3565]
[1721097452266,15.53,157.36,157.31,21.8865]
[1721097454793,15.53,157.37,157.32,6.3564]
[1721097455404,12.9545819,157.39,157.32,6.3564]
[1721097455578,6.6008819,157.39,157.32,15.53]
[1721097455902,15.53,157.38,157.33,60.53]
[1721097456200,15.53,157.39,157.34,45.0]
[1721097456579,15.53,157.38,157.34,45.0]
[1721097456980,6.3532,157.4,157.34,45.0]
[1721097457190,15.03,157.38,157.34,45.0]
[1721097457404,15.03,157.38,157.34,51.3556]
[1721097459085,15.53,157.37,157.34,45.0]
[1721097460305,15.53,157.37,157.33,6.3559]
[1721097461299,16.59953835,157.42,157.33,6.3559]
[1721097461300,6.3531,157.41,157.34,6.3556]
[1721097461492,15.53,157.38,157.34,6.3556]
[1721097461712,15.53,157.38,157.33,15.8893]
[1721097461713,15.53,157.37,157.33,22.2452]
[1721097461993,12.95233835,157.42,157.35,6.3549]
[1721097462197,15.53,157.39,157.35,6.3549]
[1721097463194,12.95233835,157.42,157.35,6.3549]
[1721097463398,15.53,157.39,157.35,6.3549]
[1721097465198,12.95233835,157.42,157.35,6.3549]
[1721097465384,15.53,157.39,157.35,6.3549]
[1721097469583,12.95203835,157.42,157.35,21.8849]
[1721097469788,15.53,157.4,157.36,6.3548]
[1721097470024,12.95203835,157.42,157.36,6.3548]
[1721097470229,15.53,157.4,157.36,6.3548]
[1721097470716,15.53,157.4,157.35,6.3551]
[1721097470907,15.53,157.4,157.36,45.0]
[1721097471910,12.95203835,157.42,157.36,45.0]
[1721097472209,15.53,157.4,157.36,45.0]
[1721097473099,12.95203835,157.42,157.36,45.0]
[1721097473301,15.53,157.4,157.36,45.0]
[1721097475785,15.53,157.39,157.34,29.0238]
[1721097475992,10.0,157.4,157.34,22.6682]
[1721097476229,15.53,157.35,157.34,16.3371]
[1721097476520,15.53,157.35,157.3,45.2853]
[1721097476750,15.53,157.34,157.3,45.2853]
[1721097477193,15.53,157.31,157.27,15.8959]
[1721097477512,15.53,157.3,157.27,15.8959]
[1721097480396,15.53,157.3,157.27,22.2543]
[1721097481131,16.3553,157.35,157.28,6.358]
[1721097481432,15.53,157.32,157.27,15.8959]
[1721097481609,15.53,157.31,157.27,15.8959]
[1721097483405,16.3554,157.35,157.28,6.358]
[1721097483601,15.53,157.33,157.28,6.358]
[1721097483910,15.53,157.32,157.28,6.358]
[1721097487923,15.53,157.32,157.28,7.62936027]
[1721097488536,15.53,157.32,157.28,6.358]
[1721097489033,15.53,157.32,157.27,37.7843]
[1721097489333,10.0,157.35,157.28,15.53]
[1721097489637,15.53,157.33,157.28,23.04434606]
[1721097489838,15.53,157.33,157.28,1.15634606]
[1721097490014,15.53,157.32,157.28,1.15634606]
[1721097490909,15.53,157.32,157.27,37.7843]
[1721097491754,15.53,157.33,157.27,37.7843]
[1721097492532,15.53,157.32,157.27,37.7843]
[1721097492730,10.0,157.33,157.26,15.492]
[1721097493031,15.53,157.27,157.21,22.8447]
[1721097493333,15.53,157.27,157.21,29.2055]
[1721097493334,15.53,157.25,157.21,29.2055]
[1721097494107,15.53,157.26,157.22,6.3604]
[1721097494310,10.0,157.3,157.22,15.53]
[1721097494534,15.53,157.28,157.23,15.53]
[1721097494734,10.0,157.3,157.23,15.53]
[1721097494923,15.53,157.28,157.23,21.8897]
[1721097495117,19.21197713,157.32,157.24,15.7919]
[1721097495311,19.21197713,157.32,157.28,21.888]
[1721097495506,19.21197713,157.32,157.28,23.1593585]
[1721097496412,6.3536,157.39,157.31,6.3565]
[1721097496716,6.354,157.38,157.32,1.27111954]
[1721097496917,15.53,157.36,157.31,21.8865]
[1721097497117,15.53,157.36,157.31,6.3565]
[1721097498820,15.53,157.36,157.31,7.6276264]
[1721097499635,15.53,157.36,157.31,23.1576264]
[1721097500228,6.354,157.38,157.31,23.1576264]
[1721097500432,10.0,157.4,157.31,16.8011264]
[1721097500627,15.53,157.37,157.32,21.8864]
[1721097501130,15.53,157.39,157.34,21.8856]
[1721097501344,18.85376446,157.41,157.35,23.15603319]
[1721097501643,15.53,157.4,157.36,16.6634]
[1721097502346,15.53,157.39,157.36,16.6634]
[1721097504635,15.53,157.4,157.36,16.6634]
[1721097505421,15.53,157.39,157.36,16.6634]
[1721097508147,25.20666446,157.41,157.36,16.6634]
[1721097508148,18.85376446,157.41,157.36,16.6634]
[1721097508344,15.53,157.4,157.36,16.6634]
[1721097508547,15.53,157.4,157.36,23.0178]
[1721097509052,15.53,157.4,157.36,16.6634]
[1721097511140,18.85376446,157.41,157.36,32.1934]
[1721097511343,18.85376446,157.41,157.38,6.3539]
[1721097511852,18.85376446,157.41,157.37,21.8844]
[1721097512756,15.53,157.42,157.37,21.8844]
[1721097513259,6.3519,157.44,157.37,21.8844]
[1721097513453,15.53,157.42,157.37,21.8844]
[1721097514157,15.53,157.42,157.38,6.3538]
[1721097515455,6.3516,157.44,157.38,6.3538]
[1721097515649,15.53,157.43,157.38,23.15440994]
[1721097516555,15.53,157.43,157.38,21.8838]
[1721097516862,15.53,157.42,157.37,21.8844]
[1721097517665,6.3516,157.44,157.38,6.3539]
[1721097517956,15.53,157.42,157.38,6.3539]
[1721097518375,10.0,157.41,157.36,16.6634]
[1721097518546,15.53,157.39,157.36,16.6634]
[1721097519293,15.53,157.38,157.36,16.6634]
[1721097519656,6.3526,157.42,157.36,16.6634]
[1721097519865,15.53,157.39,157.36,16.6634]
[1721097520460,15.53,157.4,157.36,16.6634]
[1721097521138,15.53,157.41,157.37,22.2404]
[1721097521341,15.53,157.4,157.36,16.6634]
[1721097521565,6.59974136,157.43,157.36,23.0182]
[1721097521793,15.53,157.4,157.36,23.0182]
[1721097521965,6.59974136,157.43,157.36,23.0182]
[1721097522163,15.53,157.4,157.36,23.0182]
[1721097523060,12.95184136,157.43,157.36,38.5482]
[1721097523254,15.53,157.41,157.36,38.5482]
[1721097523857,12.95184136,157.43,157.36,38.5482]
[1721097524053,15.53,157.41,157.36,38.5482]
[1721097524974,6.59974136,157.43,157.37,31.4158]
[1721097525148,15.53,157.42,157.38,6.3537]
[1721097525864,6.59974136,157.43,157.38,6.3537]
[1721097526180,22.12974136,157.43,157.38,21.8837]
[1721097526674,15.53,157.42,157.37,22.2402]
[1721097526879,15.53,157.42,157.37,31.4158]
[1721097527081,15.53,157.42,157.37,15.8858]
[1721097527582,15.53,157.41,157.37,15.8858]
[1721097529299,15.53,157.41,157.37,22.2401]
[1721097529457,6.59974136,157.43,157.37,22.2401]
[1721097529666,15.53,157.41,157.38,6.3539]
[1721097530393,6.59974136,157.43,157.38,6.3539]
[1721097530563,15.53,157.42,157.38,6.3539]
[1721097531367,15.53,157.42,157.39,6.3535]
[1721097532280,15.53,157.42,157.38,6.3539]
[1721097534380,15.53,157.41,157.38,6.3539]
[1721097536158,15.53,157.4,157.37,15.8858]
[1721097536663,15.53,157.4,157.37,22.2401]
[1721097537787,15.53,157.41,157.37,22.2401]
[1721097540981,15.53,157.41,157.38,6.3539]
[1721097545480,15.53,157.41,157.39,6.3535]
[1721097545869,15.53,157.41,157.38,6.354]
[1721097547796,15.03,157.41,157.38,6.354]
[1721097549314,16.59833767,157.45,157.37,15.8858]
[1721097549315,15.53,157.4,157.37,15.8858]
[1721097553604,6.59912306,157.43,157.38,6.3539]
[1721097553901,15.53,157.41,157.38,6.3539]
[1721097554590,15.53,157.4,157.38,6.3539]
[1721097555988,15.53,157.4,157.37,15.8858]
[1721097560193,15.53,157.4,157.37,22.2401]
[1721097561712,15.53,157.4,157.37,22.2401]
[1721097562087,6.59912306,157.43,157.37,15.8858]
[1721097562410,15.53,157.42,157.37,15.8858]
[1721097562790,6.59912306,157.43,157.37,15.8858]
[1721097563202,15.53,157.42,157.37,15.8858]
[1721097563414,15.53,157.42,157.38,6.354]
[1721097563707,16.60070663,157.44,157.38,6.354]
[1721097564010,15.53,157.42,157.38,6.354]
[1721097565720,15.53,157.41,157.37,22.2401]
[1721097567013,16.60062603,157.46,157.39,6.3535]
[1721097567308,15.53,157.42,157.39,6.3535]
[1721097567511,15.53,157.43,157.39,6.3535]
[1721097568111,15.53,157.43,157.38,23.15450921]
[1721097570393,15.53,157.43,157.38,16.80060921]
[1721097570594,6.3516,157.44,157.38,1.27060921]
[1721097570803,15.53,157.43,157.38,1.27060921]
[1721097572423,15.53,157.43,157.37,31.4158]
[1721097572424,15.53,157.42,157.37,31.4158]
[1721097572719,15.53,157.41,157.37,15.8858]
[1721097574923,15.53,157.41,157.37,22.2401]
[1721097575301,6.60062603,157.46,157.39,6.3536]
[1721097575505,6.60062603,157.46,157.42,15.8803]
[1721097575697,15.53,157.47,157.42,31.4103]
[1721097576012,15.53,157.46,157.42,15.8803]
[1721097576224,15.53,157.45,157.42,15.8803]
[1721097576430,15.53,157.46,157.42,15.8803]
[1721097576598,15.53,157.43,157.4,16.3118]
[1721097576803,15.53,157.42,157.4,16.3118]
[1721097577503,6.3518,157.44,157.4,16.3118]
[1721097577722,15.53,157.42,157.4,16.3118]
[1721097577898,15.53,157.41,157.38,6.155]
[1721097578741,10.0,157.38,157.33,6.155]
[1721097578909,10.0,157.38,157.32,16.3118]
[1721097579109,15.53,157.35,157.32,16.3118]
[1721097579445,10.0,157.38,157.32,16.3118]
[1721097579741,15.53,157.34,157.32,16.3118]
[1721097580031,16.3543,157.38,157.32,16.3118]
[1721097580241,15.53,157.36,157.32,16.3118]
[1721097580614,15.53,157.36,157.32,22.6682]
[1721097582934,15.53,157.36,157.32,16.3118]
[1721097583134,15.53,157.36,157.32,17.58295638]
[1721097583944,15.53,157.36,157.32,16.3118]
[1721097584246,16.3535,157.4,157.32,33.47395707]
[1721097584534,15.53,157.36,157.32,33.47395707]
[1721097584841,15.53,157.36,157.32,39.83035707]
[1721097585038,16.3534,157.4,157.33,6.356]
[1721097585339,15.53,157.37,157.33,6.356]
[1721097586036,15.53,157.37,157.32,47.7328]
[1721097587014,15.53,157.37,157.32,54.0891]
[1721097587426,15.53,157.38,157.32,54.0891]
[1721097588018,15.53,157.38,157.32,38.5591]
[1721097588334,6.3538,157.39,157.33,15.53]
[1721097588530,15.53,157.38,157.33,15.53]
[1721097589739,6.64315097,157.41,157.34,1.27102612]